bitfinex/quotes_SOLUSD_20220211
["timestamp","ask_amount","ask_price","bid_price","bid_amount"]
[1644561091684,58.3739406,104.83,104.76,0.024]
[1644561091884,6.12165959,104.82,104.76,0.024]
[1644561092084,35.98785959,104.82,104.74,0.024]
[1644561092485,36.98703976,104.81,104.74,0.024]
[1644561092683,36.52886123,104.79,104.74,0.024]
[1644561094886,55.62786123,104.79,104.74,0.024]
[1644561095083,50.43994093,104.79,104.74,0.024]
[1644561095786,60.17360052,104.79,104.74,0.024]
[1644561095985,60.17360052,104.79,104.71,0.024]
[1644561097888,55.40160052,104.79,104.71,0.024]
[1644561098089,24.3385,104.78,104.71,0.024]
[1644561098286,47.23487359,104.77,104.71,14.3533]
[1644561098486,47.23487359,104.77,104.72,0.024]
[1644561098686,47.23487359,104.77,104.71,14.3293]
[1644561098888,47.23487359,104.77,104.71,14.3533]
[1644561099687,61.56487359,104.77,104.71,14.3533]
[1644561102589,66.33787359,104.77,104.71,14.3533]
[1644561104789,61.56487359,104.77,104.71,20.3533]
[1644561106890,47.23487359,104.77,104.71,26.13505983]
[1644561107091,4.773,104.79,104.71,41.74549975]
[1644561107291,24.6829,104.8,104.72,18.697]
[1644561107491,24.6829,104.8,104.73,0.024]
[1644561107691,24.6829,104.8,104.75,14.3238]
[1644561107893,26.11605959,104.82,104.75,20.3238]
[1644561108093,41.84932219,104.81,104.75,20.3238]
[1644561109693,56.17342219,104.81,104.75,20.3238]
[1644561110294,41.84932219,104.81,104.75,20.3238]
[1644561111094,37.07832219,104.81,104.75,20.3238]
[1644561114800,37.07832219,104.81,104.75,28.30194829]
[1644561115196,15.67235959,104.83,104.75,28.30194829]
[1644561115395,14.3217,104.83,104.75,51.42934829]
[1644561115596,15.67235959,104.83,104.75,51.42934829]
[1644561115901,14.3217,104.83,104.75,51.42934829]
[1644561116097,46.68840196,104.82,104.75,51.42934829]
[1644561120408,15.67095959,104.84,104.75,108.80934829]
[1644561120608,1.35065959,104.84,104.78,14.3173]
[1644561120806,6.12165959,104.85,104.78,27.5663]
[1644561121010,6.16407706,104.86,104.78,32.3353]
[1644561121208,1.39507706,104.86,104.78,32.3353]
[1644561121411,46.06389781,104.86,104.79,53.45400974]
[1644561121910,46.06389781,104.86,104.81,14.3166]
[1644561122106,46.01948034,104.86,104.81,14.3166]
[1644561123629,60.33708034,104.86,104.81,14.3166]
[1644561124626,58.98642075,104.86,104.81,14.3166]
[1644561125426,44.66882075,104.86,104.81,14.3166]
[1644561125626,6.16407706,104.87,104.81,26.79337495]
[1644561125828,1.39507706,104.87,104.81,26.79337495]
[1644561126332,0.04441747,104.87,104.81,26.79337495]
[1644561126528,36.33901431,104.87,104.81,26.79337495]
[1644561126727,36.38343178,104.87,104.81,14.3166]
[1644561127126,36.38343178,104.87,104.81,37.8138]
[1644561127328,37.73409137,104.87,104.81,37.8138]
[1644561127530,36.38343178,104.87,104.81,37.8138]
[1644561128130,42.50309137,104.87,104.81,37.8138]
[1644561128529,41.15243178,104.87,104.81,37.8138]
[1644561128732,55.46873178,104.87,104.81,37.8138]
[1644561129132,50.69973178,104.87,104.81,37.8138]
[1644561130129,55.46873178,104.87,104.81,37.8138]
[1644561130535,41.15243178,104.87,104.81,37.8138]
[1644561131336,41.15243178,104.87,104.81,43.4089241]
[1644561132635,41.15243178,104.87,104.81,37.8138]
[1644561132837,36.38343178,104.87,104.81,37.8138]
[1644561135540,33.84283302,104.87,104.81,37.8138]
[1644561136643,0.04441747,104.87,104.81,37.8138]
[1644561136841,38.88575959,104.88,104.81,51.2308]
[1644561137240,38.88575959,104.88,104.81,45.2308]
[1644561137641,41.51571801,104.87,104.81,45.2308]
[1644561137842,41.56013548,104.87,104.81,45.2308]
[1644561138043,42.91079507,104.87,104.81,45.2308]
[1644561138244,41.56013548,104.87,104.81,45.2308]
[1644561138443,41.56013548,104.87,104.81,37.8138]
[1644561139845,42.91079507,104.87,104.81,37.8138]
[1644561140445,42.91079507,104.87,104.82,10.0104888]
[1644561140646,42.8663776,104.87,104.83,14.3142]
[1644561140946,42.91079507,104.87,104.83,14.3142]
[1644561141547,1.39507706,104.87,104.83,14.3142]
[1644561141746,0.04441747,104.87,104.83,22.2372]
[1644561142147,38.88575959,104.88,104.83,22.2372]
[1644561142549,77.17250962,104.88,104.83,22.2372]
[1644561143749,62.85750962,104.88,104.83,22.2372]
[1644561143950,62.90192709,104.88,104.83,14.3142]
[1644561144552,62.90192709,104.88,104.85,1.2982779]
[1644561144750,39.63740962,104.88,104.85,1.2982779]
[1644561146051,38.63740962,104.88,104.85,1.2982779]
[1644561146853,38.28675003,104.88,104.85,1.2982779]
[1644561149077,52.60095003,104.88,104.85,1.2982779]
[1644561149476,57.36895003,104.88,104.85,1.2982779]
[1644561150479,57.36895003,104.88,104.86,0.94172165]
[1644561150680,57.36895003,104.88,104.85,1.2982779]
[1644561151580,52.60095003,104.88,104.85,1.2982779]
[1644561153984,57.36895003,104.88,104.85,1.2982779]
[1644561155086,14.3142,104.88,104.85,1.2982779]
[1644561155283,17.02786683,104.89,104.85,1.2982779]
[1644561155483,0.04441747,104.9,104.85,1.2982779]
[1644561156083,0.04441747,104.9,104.86,35.535727]
[1644561156685,61.53310624,104.92,104.85,25.5136779]
[1644561156887,0.04441747,104.91,104.85,25.7636779]
[1644561157088,0.04441747,104.91,104.85,31.7636779]
[1644561157288,0.04441747,104.91,104.85,25.7636779]
[1644561157488,0.04441747,104.91,104.85,31.7636779]
[1644561157690,0.04441747,104.91,104.87,14.3083]
[1644561157889,58.77412194,104.92,104.87,23.2443]
[1644561158088,58.81853941,104.92,104.87,23.2443]
[1644561158291,14.78803385,104.92,104.87,23.2443]
[1644561158490,0.47883385,104.92,104.87,23.2443]
[1644561158691,0.47883385,104.92,104.87,29.4943]
[1644561159191,0.47883385,104.92,104.87,86.8743]
[1644561159395,0.47883385,104.92,104.89,14.3026]
[1644561159593,0.47883385,104.92,104.9,3.97356253]
[1644561159794,0.47883385,104.92,104.9,11.81256253]
[1644561160392,0.47883385,104.92,104.91,14.3026]
[1644561160793,0.47883385,104.92,104.91,17.38186362]
[1644561160993,0.47883385,104.92,104.87,19.9]
[1644561161195,0.47883385,104.92,104.85,72.9389779]
[1644561161394,14.83305132,104.92,104.85,39.5550779]
[1644561161594,4.81141747,104.91,104.85,39.5550779]
[1644561161795,36.64557935,104.9,104.85,39.5550779]
[1644561161995,0.04441747,104.91,104.85,39.5550779]
[1644561162395,0.04441747,104.91,104.85,103.1850779]
[1644561162595,0.04441747,104.91,104.9,1.2982779]
[1644561162797,0.47883385,104.92,104.9,1.2982779]
[1644561162996,44.64327429,104.92,104.9,1.2982779]
[1644561166199,58.95257429,104.92,104.9,1.2982779]
[1644561166901,44.64327429,104.92,104.9,1.2982779]
[1644561167800,44.64327429,104.92,104.84,13.9]
[1644561168006,4.766,104.91,104.84,13.9]
[1644561168199,4.81041747,104.91,104.83,23.3717]
[1644561168400,23.51831747,104.91,104.83,23.3717]
[1644561168599,44.61302569,104.9,104.83,23.3717]
[1644561169800,44.61302569,104.9,104.85,14.3101]
[1644561171006,49.38002569,104.9,104.85,14.3101]
[1644561171504,63.69182569,104.9,104.84,14.3114]
[1644561171704,63.69182569,104.9,104.83,23.3717]
[1644561171904,75.03082569,104.9,104.82,4.765]
[1644561172104,0.04441747,104.89,104.82,4.765]
[1644561172303,4.768,104.88,104.82,4.765]
[1644561172501,36.26710093,104.87,104.82,4.765]
[1644561172702,47.67637892,104.85,104.82,4.765]
[1644561173104,47.67637892,104.85,104.79,14.3181]
[1644561176806,56.19837892,104.85,104.79,14.3181]
[1644561177007,70.51747892,104.85,104.79,14.3181]
[1644561178006,70.51747892,104.85,104.76,71.28]
[1644561178007,51.0,104.84,104.76,71.28]
[1644561178207,51.0,104.84,104.74,23.6504]
[1644561178208,70.0912,104.84,104.74,23.6504]
[1644561178411,70.0912,104.84,104.75,0.024]
[1644561178412,19.0912,104.84,104.75,0.024]
[1644561178608,2.39443992,104.83,104.75,0.024]
[1644561178808,4.771,104.82,104.75,0.024]
[1644561179013,40.4880533,104.81,104.75,0.024]
[1644561179607,54.8153533,104.81,104.75,0.024]
[1644561179808,4.771,104.8,104.72,0.024]
[1644561180408,34.54498589,104.79,104.72,0.024]
[1644561180611,57.58488589,104.79,104.72,0.024]
[1644561180809,4.773,104.78,104.72,0.024]
[1644561181010,41.92086719,104.77,104.72,0.024]
[1644561181614,4.773,104.76,104.72,0.024]
[1644561181810,4.773,104.76,104.7,4.773]
[1644561181811,14.799,104.76,104.7,4.773]
[1644561182011,14.799,104.76,104.69,0.024]
[1644561182410,43.25654244,104.75,104.69,0.024]
[1644561182633,4.774,104.74,104.69,0.024]
[1644561182811,48.80738144,104.73,104.69,0.024]
[1644561183009,59.45338144,104.73,104.67,22.6769]
[1644561183209,64.22838144,104.73,104.67,22.6769]
[1644561183410,59.45338144,104.73,104.67,22.6769]
[1644561184612,59.45338144,104.73,104.67,57.49506785]
[1644561184811,48.80738144,104.73,104.67,57.49506785]
[1644561186215,48.80738144,104.73,104.67,57.74506785]
[1644561186414,48.80738144,104.73,104.67,77.64506785]
[1644561186615,48.80738144,104.73,104.67,135.04906785]
[1644561186819,48.80738144,104.73,104.67,156.95466499]
[1644561187019,48.80738144,104.73,104.67,171.26206499]
[1644561187219,48.80738144,104.73,104.67,171.28606499]
[1644561188117,48.80738144,104.73,104.67,118.68106499]
[1644561188316,48.80738144,104.73,104.67,90.52546785]
[1644561188516,48.80738144,104.73,104.67,90.77546785]
[1644561188718,48.80738144,104.73,104.67,90.52546785]
[1644561189019,18.675,104.79,104.67,90.77546785]
[1644561189218,14.3314,104.78,104.7,14.3294]
[1644561189519,4.775,104.79,104.71,0.024]
[1644561189716,4.775,104.79,104.69,23.5366]
[1644561189916,54.0108,104.8,104.7,4.797]
[1644561190140,54.0108,104.8,104.71,63.93206376]
[1644561190141,38.60540293,104.79,104.71,63.93206376]
[1644561190339,38.60540293,104.79,104.72,0.024]
[1644561190542,4.773,104.78,104.72,0.024]
[1644561191239,47.9156975,104.77,104.72,0.024]
[1644561191441,47.9156975,104.77,104.71,37.8411]
[1644561191639,47.9156975,104.77,104.71,37.8651]
[1644561192240,4.773,104.76,104.71,0.024]
[1644561192741,4.773,104.76,104.67,22.6769]
[1644561192742,4.773,104.76,104.68,0.024]
[1644561193141,48.16865881,104.75,104.68,0.024]
[1644561193340,48.16865881,104.75,104.68,14.3575]
[1644561193542,48.16865881,104.75,104.68,0.024]
[1644561194743,4.774,104.74,104.68,0.024]
[1644561194942,35.57865656,104.73,104.68,0.024]
[1644561195144,35.57865656,104.73,104.67,3.7374551]
[1644561195343,4.775,104.72,104.67,3.7374551]
[1644561195544,4.775,104.72,104.67,3.7134551]
[1644561195944,46.2364158,104.71,104.67,3.7134551]
[1644561196545,46.2364158,104.71,104.65,0.024]
[1644561197049,51.0124158,104.71,104.65,0.024]
[1644561200548,51.0124158,104.71,104.65,14.3616]
[1644561200749,51.0124158,104.71,104.66,42.56877607]
[1644561200948,46.2364158,104.71,104.66,42.56877607]
[1644561202050,46.2364158,104.71,104.66,56.90467607]
[1644561203454,46.2364158,104.71,104.66,14.3359]
[1644561205555,35.7364158,104.71,104.66,14.3359]
[1644561205853,35.7364158,104.71,104.67,38.81723224]
[1644561206054,35.7364158,104.71,104.67,53.15333224]
[1644561211754,35.7364158,104.71,104.67,59.15333224]
[1644561212958,19.1113,104.74,104.67,53.15333224]
[1644561213156,14.3353,104.74,104.68,0.024]
[1644561213355,14.3353,104.74,104.69,14.3338]
[1644561213556,37.1175,104.75,104.69,14.3338]
[1644561213955,38.07878703,104.74,104.7,42.57448559]
[1644561214158,38.07878703,104.74,104.7,42.59848559]
[1644561214361,38.07878703,104.74,104.7,42.57448559]
[1644561215161,38.07878703,104.74,104.69,14.3578]
[1644561216460,42.85278703,104.74,104.69,14.3578]
[1644561217560,42.85278703,104.74,104.7,35.99244336]
[1644561217962,37.1175,104.75,104.7,50.32504336]
[1644561218165,71.5606,104.77,104.7,50.34904336]
[1644561218166,23.7763,104.77,104.7,50.34904336]
[1644561218362,23.7763,104.77,104.7,50.32504336]
[1644561218566,23.7763,104.77,104.71,0.024]
[1644561218961,34.40952564,104.76,104.71,0.024]
[1644561219762,34.40952564,104.76,104.72,14.3297]
[1644561220165,34.40952564,104.76,104.71,0.024]
[1644561220468,4.773,104.75,104.67,0.024]
[1644561220864,28.1731,104.75,104.67,0.024]
[1644561221066,40.88666739,104.74,104.67,41.02067187]
[1644561221266,40.88666739,104.74,104.68,0.024]
[1644561221868,55.22226739,104.74,104.68,14.3592]
[1644561223770,55.22226739,104.74,104.68,0.024]
[1644561223972,59.99726739,104.74,104.68,0.024]
[1644561226871,19.1106,104.74,104.68,23.23]
[1644561227071,37.7333,104.75,104.68,23.23]
[1644561227271,23.3844,104.77,104.68,29.48]
[1644561227472,23.3844,104.77,104.68,29.23]
[1644561227671,23.3844,104.77,104.68,23.23]
[1644561227871,35.68494318,104.76,104.69,46.98384964]
[1644561228072,35.68494318,104.76,104.7,0.024]
[1644561228274,50.01654318,104.76,104.7,0.024]
[1644561229173,4.774,104.75,104.7,0.024]
[1644561229372,4.774,104.75,104.68,0.024]
[1644561229572,14.3353,104.74,104.68,0.024]
[1644561230375,49.80822265,104.74,104.68,57.81087579]
[1644561230574,14.3353,104.74,104.68,57.81087579]
[1644561231177,37.7548,104.75,104.68,57.81087579]
[1644561231375,23.4217,104.75,104.68,66.98487579]
[1644561231777,23.4217,104.75,104.68,72.98487579]
[1644561231977,43.00009088,104.76,104.68,72.98487579]
[1644561233579,43.00009088,104.76,104.68,72.73487579]
[1644561233782,57.33149088,104.76,104.68,57.81087579]
[1644561234078,59.7259308,104.76,104.68,57.81087579]
[1644561234479,4.774,104.75,104.68,57.81087579]
[1644561234780,38.03006796,104.74,104.68,57.81087579]
[1644561237384,38.03006796,104.74,104.68,14.359]
[1644561237583,52.36426796,104.74,104.68,14.359]
[1644561237885,4.775,104.73,104.67,0.024]
[1644561238282,18.675,104.73,104.63,0.024]
[1644561238482,44.88956505,104.72,104.63,44.56753574]
[1644561238683,59.22966505,104.72,104.64,0.024]
[1644561238907,4.776,104.71,104.64,0.024]
[1644561239110,43.15545237,104.7,104.64,0.024]
[1644561239711,43.15545237,104.7,104.63,44.56753574]
[1644561239910,57.49555237,104.7,104.63,44.56753574]
[1644561240412,4.776,104.71,104.63,58.90753574]
[1644561240611,24.6633,104.72,104.64,0.024]
[1644561240809,24.6633,104.72,104.64,4.8]
[1644561241013,24.6633,104.72,104.65,0.024]
[1644561241210,24.6633,104.72,104.64,4.37]
[1644561241412,45.94664948,104.71,104.65,39.48912346]
[1644561241712,45.94664948,104.71,104.65,53.82572346]
[1644561243210,45.94664948,104.71,104.65,59.82572346]
[1644561244717,14.336,104.73,104.65,59.82572346]
[1644561245817,46.46918124,104.72,104.65,59.82572346]
[1644561246218,46.46918124,104.72,104.65,53.82572346]
[1644561249220,60.80648124,104.72,104.65,59.82572346]
[1644561249421,70.78901145,104.72,104.65,59.82572346]
[1644561249620,70.78901145,104.72,104.65,53.82572346]
[1644561249820,60.80648124,104.72,104.65,53.82572346]
[1644561250021,14.3373,104.72,104.65,53.82572346]
[1644561250227,4.776,104.74,104.65,54.07572346]
[1644561250425,4.775,104.75,104.66,13.9]
[1644561250621,4.775,104.75,104.68,14.3327]
[1644561251026,43.78371105,104.74,104.69,41.61808768]
[1644561251225,43.78371105,104.74,104.68,14.3327]
[1644561251726,4.775,104.73,104.68,14.3327]
[1644561251928,43.78371105,104.74,104.68,14.3327]
[1644561252331,43.78371105,104.74,104.69,38.62624848]
[1644561253226,29.1236,104.76,104.69,38.62624848]
[1644561253429,14.3331,104.75,104.69,38.62624848]
[1644561253628,14.3331,104.75,104.69,52.95904848]
[1644561254228,55.15427951,104.75,104.69,52.95904848]
[1644561254533,55.15427951,104.75,104.69,38.62624848]
[1644561254728,55.15427951,104.75,104.67,24.3828]
[1644561254929,55.15427951,104.75,104.67,24.6328]
[1644561255529,55.15427951,104.75,104.67,24.3828]
[1644561255728,55.15427951,104.75,104.68,62.69424347]
[1644561256329,55.15427951,104.75,104.69,0.024]
[1644561257331,40.82117951,104.75,104.7,34.9971755]
[1644561259534,45.59517951,104.75,104.7,34.9971755]
[1644561259934,45.59517951,104.75,104.7,49.3283755]
[1644561260837,40.82117951,104.75,104.7,49.3283755]
[1644561261036,2.71456683,104.79,104.71,57.38]
[1644561261237,2.71456683,104.79,104.72,14.3284]
[1644561261436,2.71456683,104.82,104.73,4.773]
[1644561261638,26.82466683,104.83,104.73,28.4226]
[1644561261838,4.771,104.82,104.73,29.8996]
[1644561262038,37.77097251,104.81,104.74,40.53322492]
[1644561262241,52.09587251,104.81,104.75,14.3235]
[1644561263639,4.771,104.8,104.76,35.44668018]
[1644561263841,37.44123237,104.79,104.75,14.3235]
[1644561264942,37.44123237,104.79,104.75,57.10526972]
[1644561265163,4.771,104.82,104.75,57.10526972]
[1644561265341,27.4032,104.85,104.75,114.73526972]
[1644561265542,22.6322,104.85,104.76,81.3854]
[1644561265741,22.6322,104.85,104.78,14.3188]
[1644561266242,46.58692574,104.84,104.78,49.54476833]
[1644561267546,46.58692574,104.84,104.78,35.22596833]
[1644561269443,60.90892574,104.84,104.76,52.3752]
[1644561269644,4.769,104.83,104.76,47.6062]
[1644561269846,4.769,104.83,104.74,13.9]
[1644561270148,6.11791713,104.83,104.73,47.7765]
[1644561270344,36.80967886,104.82,104.74,48.80551159]
[1644561271245,36.80967886,104.82,104.74,54.80551159]
[1644561271845,51.13437886,104.82,104.74,69.12891159]
[1644561272048,51.13437886,104.82,104.74,63.12891159]
[1644561272669,51.13437886,104.82,104.74,69.12891159]
[1644561272848,4.771,104.81,104.74,69.12891159]
[1644561273146,37.11010305,104.8,104.74,69.12891159]
[1644561273547,37.11010305,104.8,104.74,48.80551159]
[1644561273747,37.11010305,104.8,104.73,52.5475]
[1644561273954,37.11010305,104.8,104.73,34.2587]
[1644561274148,37.11010305,104.8,104.73,28.2587]
[1644561274749,37.11010305,104.8,104.73,63.62259523]
[1644561275153,37.11010305,104.8,104.73,58.85159523]
[1644561280059,37.11010305,104.8,104.73,23.4877]
[1644561280286,51.43710305,104.8,104.72,24.7386]
[1644561280487,4.772,104.79,104.72,24.7386]
[1644561280685,6.12091713,104.79,104.72,24.7386]
[1644561281087,45.06138174,104.78,104.72,60.22066452]
[1644561281886,59.39128174,104.78,104.72,60.22066452]
[1644561284689,47.88358829,104.76,104.72,60.22066452]
[1644561284891,47.88358829,104.76,104.72,24.7386]
[1644561285292,47.88358829,104.76,104.69,4.797]
[1644561285493,55.20758829,104.76,104.69,0.024]
[1644561285690,70.45650542,104.76,104.69,0.024]
[1644561285890,40.4445705,104.74,104.67,0.024]
[1644561286091,4.775,104.73,104.65,0.024]
[1644561286291,29.4302,104.73,104.65,0.024]
[1644561286893,13.9,104.72,104.65,0.024]
[1644561287093,44.24848054,104.7,104.64,0.024]
[1644561287293,44.24848054,104.7,104.63,3.7374551]
[1644561287294,38.27673764,104.68,104.63,3.7374551]
[1644561287595,38.27673764,104.68,104.64,0.024]
[1644561287793,38.27673764,104.68,104.63,38.92766189]
[1644561288306,38.27673764,104.68,104.63,3.7374551]
[1644561288493,48.95573764,104.68,104.63,3.7374551]
[1644561289294,48.95573764,104.68,104.63,51.78382718]
[1644561289493,38.27673764,104.68,104.63,51.78382718]
[1644561290794,38.27673764,104.68,104.63,3.7374551]
[1644561292394,4.777,104.71,104.64,42.19510565]
[1644561292594,4.777,104.71,104.64,42.21910565]
[1644561292794,14.338,104.73,104.65,4.8]
[1644561293597,14.338,104.73,104.66,44.44028899]
[1644561293598,39.50874397,104.72,104.66,44.44028899]
[1644561293797,39.50874397,104.72,104.67,0.024]
[1644561293997,39.50874397,104.72,104.66,44.46428899]
[1644561294196,39.50874397,104.72,104.66,52.51128899]
[1644561294597,39.50874397,104.72,104.66,52.76128899]
[1644561294796,39.50874397,104.72,104.66,58.76128899]
[1644561295299,39.50874397,104.72,104.66,58.51128899]
[1644561295699,39.50874397,104.72,104.66,72.84528899]
[1644561296800,39.50874397,104.72,104.66,73.09528899]
[1644561296997,37.2472,104.75,104.66,73.09528899]
[1644561297198,22.9132,104.75,104.67,19.1315]
[1644561297398,22.9132,104.75,104.68,0.024]
[1644561298200,39.24129686,104.74,104.68,41.82794039]
[1644561301401,39.24129686,104.74,104.68,41.80394039]
[1644561302808,39.24129686,104.74,104.67,0.024]
[1644561303201,4.775,104.73,104.67,0.024]
[1644561303802,48.30377433,104.72,104.67,38.59150305]
[1644561304003,48.30377433,104.72,104.67,0.024]
[1644561304203,4.775,104.71,104.66,22.6549]
[1644561304403,48.30377433,104.72,104.66,22.6549]
[1644561305103,53.07977433,104.72,104.66,22.6549]
[1644561306003,67.41777433,104.72,104.66,22.6549]
[1644561306207,62.64177433,104.72,104.66,22.6549]
[1644561306426,62.64177433,104.72,104.66,0.024]
[1644561307306,62.64177433,104.72,104.64,96.01546984]
[1644561307508,62.64177433,104.72,104.65,0.024]
[1644561308508,62.64177433,104.72,104.65,14.3605]
[1644561308710,62.64177433,104.72,104.66,39.21468068]
[1644561310414,62.64177433,104.72,104.65,0.024]
[1644561311414,62.64177433,104.72,104.65,41.22603376]
[1644561311614,67.41777433,104.72,104.65,41.22603376]
[1644561312216,62.64177433,104.72,104.65,41.22603376]
[1644561313614,62.64177433,104.72,104.65,55.56263376]
[1644561314237,1.34891713,104.73,104.66,2.39443992]
[1644561314437,1.34891713,104.75,104.67,0.024]
[1644561314639,1.34891713,104.75,104.68,19.1058]
[1644561314840,1.34891713,104.76,104.68,27.75023992]
[1644561315045,1.34891713,104.76,104.69,25.01793992]
[1644561315241,45.82971002,104.75,104.69,66.40017402]
[1644561315643,45.82971002,104.75,104.69,31.26793992]
[1644561315839,45.82971002,104.75,104.69,25.26793992]
[1644561316040,45.82971002,104.75,104.69,31.01793992]
[1644561316542,45.82971002,104.75,104.69,22.6235]
[1644561316741,51.95262715,104.75,104.69,22.6235]
[1644561316941,47.17862715,104.75,104.69,22.6235]
[1644561317341,61.51182715,104.75,104.67,26.11173992]
[1644561317540,6.12391713,104.74,104.67,23.7173]
[1644561317740,1.34891713,104.73,104.66,0.024]
[1644561317941,4.775,104.72,104.66,0.024]
[1644561318242,46.32990359,104.71,104.66,0.024]
[1644561318440,60.66970359,104.71,104.66,0.024]
[1644561321744,14.3413,104.69,104.63,0.024]
[1644561321944,50.83850523,104.69,104.63,0.024]
[1644561323044,36.49720523,104.69,104.63,42.23519123]
[1644561323243,36.49720523,104.69,104.63,44.62963115]
[1644561324744,36.49720523,104.69,104.63,131.98962331]
[1644561324945,1.34891713,104.73,104.64,4.777]
[1644561325145,1.34891713,104.73,104.65,38.223]
[1644561325345,1.34891713,104.73,104.65,54.32699216]
[1644561325546,48.10211713,104.74,104.65,56.47143208]
[1644561325746,14.336,104.73,104.65,65.05683208]
[1644561325946,54.58593524,104.73,104.66,47.30611072]
[1644561326147,54.58593524,104.73,104.66,49.70055064]
[1644561326353,40.24993524,104.73,104.66,49.70055064]
[1644561326947,40.24993524,104.73,104.66,130.94875064]
[1644561327148,40.24993524,104.73,104.68,48.60946712]
[1644561327751,40.24993524,104.73,104.68,51.00390704]
[1644561328153,40.24993524,104.73,104.68,65.33510704]
[1644561328552,40.24993524,104.73,104.68,65.58510704]
[1644561328754,1.34891713,104.76,104.68,71.58510704]
[1644561328955,1.34891713,104.76,104.69,23.467]
[1644561329256,1.34891713,104.76,104.69,29.467]
[1644561329858,35.01395654,104.75,104.7,46.10185489]
[1644561331155,39.78795654,104.75,104.69,23.467]
[1644561331554,41.13687367,104.75,104.69,23.467]
[1644561331758,50.69597367,104.75,104.69,23.467]
[1644561331954,4.774,104.74,104.69,23.467]
[1644561332155,47.02075609,104.73,104.69,23.467]
[1644561332354,47.02075609,104.73,104.67,34.58327083]
[1644561337857,47.02075609,104.73,104.67,40.58327083]
[1644561338060,47.02075609,104.73,104.67,34.58327083]
[1644561339259,47.02075609,104.73,104.67,40.58327083]
[1644561339659,47.02075609,104.73,104.67,34.58327083]
[1644561340059,47.02075609,104.73,104.67,48.91647083]
[1644561340660,47.02075609,104.73,104.67,51.31091075]
[1644561341759,47.02075609,104.73,104.67,57.31091075]
[1644561343359,47.02075609,104.73,104.67,48.91647083]
[1644561343759,47.02075609,104.73,104.67,34.58327083]
[1644561345664,47.02075609,104.73,104.67,40.58327083]
[1644561345861,47.02075609,104.73,104.67,54.91667083]
[1644561346062,47.02075609,104.73,104.67,48.91667083]
[1644561346463,47.02075609,104.73,104.67,56.08611075]
[1644561347265,47.02075609,104.73,104.67,62.08611075]
[1644561347466,47.02075609,104.73,104.67,62.11011075]
[1644561347890,47.02075609,104.73,104.67,56.11011075]
[1644561348490,47.02075609,104.73,104.67,62.11011075]
[1644561348691,47.02075609,104.73,104.67,56.11011075]
[1644561350696,47.02075609,104.73,104.67,62.11011075]
[1644561351597,47.02075609,104.73,104.67,57.33511075]
[1644561352195,47.02075609,104.73,104.67,48.94067083]
[1644561353494,47.02075609,104.73,104.67,0.024]
[1644561353696,4.775,104.72,104.67,0.024]
[1644561353896,20.46091713,104.72,104.66,6.024]
[1644561354096,20.46091713,104.72,104.66,0.024]
[1644561354395,1.34891713,104.71,104.66,0.024]
[1644561354594,35.20353977,104.7,104.66,0.024]
[1644561361203,1.34891713,104.73,104.66,0.024]
[1644561361703,40.33611713,104.74,104.66,14.3587]
[1644561361903,1.34891713,104.73,104.67,0.024]
[1644561362103,40.33611713,104.74,104.67,0.024]
[1644561362302,47.25137817,104.73,104.67,0.024]
[1644561362703,48.6002953,104.73,104.67,0.024]
[1644561364112,48.6002953,104.73,104.67,14.3578]
[1644561364914,48.6002953,104.73,104.67,14.3338]
[1644561365308,1.34891713,104.73,104.68,98.80964348]
[1644561365510,1.39253173,104.75,104.69,28.2298]
[1644561365708,1.34891713,104.76,104.69,51.3367]
[1644561366010,1.34891713,104.76,104.69,59.98113992]
[1644561366207,40.52109935,104.75,104.69,59.98113992]
[1644561366608,40.56471395,104.75,104.69,59.98113992]
[1644561367009,40.52109935,104.75,104.69,59.98113992]
[1644561370916,40.52109935,104.75,104.69,74.17173992]
[1644561373019,40.52109935,104.75,104.69,71.7773]
[1644561373621,40.52109935,104.75,104.69,57.5867]
[1644561376920,40.56471395,104.75,104.69,57.3367]
[1644561377121,40.56471395,104.75,104.69,57.5867]
[1644561378918,40.56471395,104.75,104.69,57.3367]
[1644561382323,40.56471395,104.75,104.68,19.1071]
[1644561382623,40.56471395,104.75,104.67,0.024]
[1644561382624,4.774,104.74,104.67,0.024]